bitfinex/quotes_BTCUSD_20250922
["timestamp","ask_amount","ask_price","bid_price","bid_amount"]
[1758524193860,1.26385912,113000.0,112990.0,0.01134081]
[1758524194549,0.97549912,113000.0,112990.0,0.01134081]
[1758524194743,1.26385912,113000.0,112990.0,0.01134081]
[1758524195354,0.97549912,113000.0,112990.0,0.01134081]
[1758524195551,1.00565102,113000.0,112990.0,0.01134081]
[1758524195716,1.29401102,113000.0,112990.0,0.01134081]
[1758524196322,0.80117252,113000.0,112990.0,0.01134081]
[1758524196536,1.29401102,113000.0,112990.0,0.01134081]
[1758524197230,1.87211919,113000.0,112990.0,0.01134081]
[1758524197983,0.51700681,112990.0,112980.0,0.00676791]
[1758524198192,1.32351648,112990.0,112980.0,0.00676791]
[1758524198499,1.35572838,112990.0,112980.0,0.00676791]
[1758524198678,1.84856688,112990.0,112980.0,0.00676791]
[1758524199348,1.85056688,112990.0,112980.0,0.00676791]
[1758524200005,1.87829688,112990.0,112980.0,0.00676791]
[1758524200330,1.88429688,112990.0,112980.0,0.00676791]
[1758524200966,1.39145838,112990.0,112980.0,0.00676791]
[1758524201169,1.88429688,112990.0,112980.0,0.00676791]
[1758524201372,1.96956655,112990.0,112980.0,0.00676791]
[1758524201975,1.88429688,112990.0,112980.0,0.00676791]
[1758524202176,1.39145838,112990.0,112980.0,0.00676791]
[1758524202417,1.88429688,112990.0,112980.0,0.00676791]
[1758524203830,1.39145838,112990.0,112980.0,0.00676791]
[1758524204077,1.88429688,112990.0,112980.0,0.00676791]
[1758524204658,1.76123875,112990.0,112980.0,0.00676791]
[1758524204860,1.78786073,112990.0,112980.0,0.00676791]
[1758524205071,1.78477073,112990.0,112980.0,0.00676791]
[1758524206978,1.78786073,112990.0,112980.0,0.00676791]
[1758524207513,1.78477073,112990.0,112980.0,0.00676791]
[1758524207722,1.88049073,112990.0,112980.0,0.00676791]
[1758524207930,1.85585073,112990.0,112980.0,0.03215791]
[1758524208510,1.85585073,112990.0,112980.0,0.00883791]
[1758524208721,1.85585073,112990.0,112980.0,0.03524791]
[1758524209148,1.56749073,112990.0,112980.0,0.03524791]
[1758524209358,1.85581073,112990.0,112980.0,0.03524791]
[1758524209560,1.85581073,112990.0,112980.0,0.00883791]
[1758524211261,1.86406114,112990.0,112980.0,0.00883791]
[1758524211527,1.20596077,112990.0,112980.0,0.01192791]
[1758524211711,1.05360681,112990.0,112980.0,0.77480865]
[1758524211924,1.34188681,112990.0,112980.0,0.40502828]
[1758524212093,1.00188681,112990.0,112980.0,0.77480865]
[1758524212450,1.00188681,112990.0,112980.0,0.40502828]
[1758524213331,1.00188681,112990.0,112980.0,0.38170828]
[1758524213538,1.37993077,112990.0,112980.0,0.03215791]
[1758524213956,1.0101504,112990.0,112980.0,0.03524791]
[1758524214429,1.38199077,112990.0,112980.0,0.00883791]
[1758524214648,1.40663077,112990.0,112980.0,0.00676791]
[1758524214872,1.0368504,112990.0,112980.0,0.00883791]
[1758524215094,0.7218704,112990.0,112980.0,0.77480865]
[1758524215548,1.00188681,112990.0,112980.0,0.77480865]
[1758524216007,0.66360681,112990.0,112980.0,0.77480865]
[1758524216231,0.4866,112990.0,112980.0,1.0371008]
[1758524216626,0.77484,112990.0,112980.0,1.0371008]
[1758524217050,0.77284,112990.0,112980.0,1.0371008]
[1758524217255,0.76684,112990.0,112980.0,1.0371008]
[1758524217468,0.76684,112990.0,112980.0,1.0391008]
[1758524217683,0.76684,112990.0,112980.0,1.0441008]
[1758524219813,0.4786,112990.0,112980.0,1.0441008]
[1758524220032,0.22697579,113010.0,113000.0,0.17698531]
[1758524220261,0.5234951,113010.0,113000.0,0.94110605]
[1758524220469,0.5234951,113010.0,113000.0,0.76726074]
[1758524221767,0.5254951,113010.0,113000.0,0.76726074]
[1758524221974,0.5254951,113010.0,113000.0,0.94425189]
[1758524222580,0.5264951,113010.0,113000.0,0.94425189]
[1758524223314,0.5264951,113010.0,113000.0,0.76726074]
[1758524223886,0.5264951,113010.0,113000.0,0.94425189]
[1758524224091,0.01127931,113010.0,113000.0,1.02952156]
[1758524224327,0.29116,113010.0,113000.0,1.02952156]
[1758524224543,0.29116,113010.0,113000.0,1.09587322]
[1758524225584,0.28816,113010.0,113000.0,1.09587322]
[1758524225801,0.28816,113010.0,113000.0,1.46565359]
[1758524226818,0.28816,113010.0,113000.0,1.09587322]
[1758524226995,0.28816,113010.0,113000.0,1.09787322]
[1758524227226,0.28816,113010.0,113000.0,1.09887322]
[1758524227432,0.28816,113010.0,113000.0,1.09787322]
[1758524227643,0.28816,113010.0,113000.0,1.10287322]
[1758524228869,0.721,113020.0,113010.0,0.17697548]
[1758524229079,0.89795983,113020.0,113010.0,0.57445585]
[1758524230159,0.90001983,113020.0,113010.0,0.02456]
[1758524230371,0.17697548,113010.0,113000.0,0.43613203]
[1758524230652,0.25191548,113010.0,113000.0,0.8059124]
[1758524230837,0.22697548,113010.0,113000.0,1.01221355]
[1758524231365,0.22697548,113010.0,113000.0,0.8352224]
[1758524231986,0.22697548,113010.0,113000.0,1.01721355]
[1758524232410,0.22697548,113010.0,113000.0,1.01921355]
[1758524233398,0.22697548,113010.0,113000.0,0.8422224]
[1758524233586,0.22902548,113010.0,113000.0,0.8422224]
[1758524233819,0.22902548,113010.0,113000.0,0.8392424]
[1758524234247,0.22902548,113010.0,113000.0,1.01623355]
[1758524234695,0.22697548,113010.0,113000.0,1.01921355]
[1758524235539,0.22697548,113010.0,113000.0,0.27965281]
[1758524235721,0.22697548,113010.0,113000.0,1.01921355]
[1758524236471,0.338,113010.0,113000.0,1.01921355]
[1758524236695,0.338,113020.0,113010.0,0.17697548]
[1758524236900,0.338,113020.0,113010.0,0.94378622]
[1758524237117,0.23579202,113030.0,113020.0,0.17695983]
[1758524237359,0.53220539,113030.0,113020.0,0.76887074]
[1758524237560,0.52393178,113030.0,113020.0,0.94583057]
[1758524238116,0.52393178,113030.0,113020.0,0.76887074]
[1758524238319,0.52598178,113030.0,113020.0,0.74162074]
[1758524238528,0.52798178,113030.0,113020.0,0.74162074]
[1758524238758,0.52593178,113030.0,113020.0,0.76887074]
[1758524238969,0.23793178,113030.0,113020.0,0.94583057]
[1758524239439,0.52593178,113030.0,113020.0,0.94583057]
[1758524239913,0.52693178,113030.0,113020.0,0.94583057]
[1758524241116,0.23893178,113030.0,113020.0,0.94583057]
[1758524241330,0.52693178,113030.0,113020.0,0.94583057]
[1758524241529,0.34114041,113030.0,113020.0,0.94583057]
[1758524241733,0.29114041,113030.0,113020.0,0.94583057]
[1758524241954,0.51808458,113030.0,113020.0,0.94583057]
[1758524242329,0.51804458,113030.0,113020.0,0.94583057]
[1758524242756,0.51804458,113030.0,113020.0,0.76887074]
[1758524242987,0.52009458,113030.0,113020.0,0.76589074]
[1758524243484,0.52009458,113030.0,113020.0,0.02633]
[1758524243697,0.52009458,113030.0,113020.0,0.76589074]
[1758524246573,0.52009458,113030.0,113020.0,0.76887074]
[1758524246934,0.52009458,113030.0,113020.0,0.76589074]
[1758524248779,0.52009458,113030.0,113020.0,0.76899074]
[1758524249547,0.52009458,113030.0,113020.0,0.76589074]
[1758524249967,0.52001458,113030.0,113020.0,0.76589074]
[1758524250175,0.51796458,113030.0,113020.0,0.76899074]
[1758524250556,0.52003458,113030.0,113020.0,0.76899074]
[1758524251556,0.52003458,113030.0,113020.0,0.02943]
[1758524251758,0.52003458,113030.0,113020.0,0.76899074]
[1758524252386,0.51796458,113030.0,113020.0,0.76899074]
[1758524252730,0.51796458,113030.0,113020.0,0.02943]
[1758524252945,0.51796458,113030.0,113020.0,0.76899074]
[1758524253680,0.52003458,113030.0,113020.0,0.76899074]
[1758524253972,0.52003458,113030.0,113020.0,0.02633]
[1758524254219,0.17695983,113020.0,113010.0,0.40036967]
[1758524254429,0.17695983,113020.0,113010.0,0.57944515]
[1758524255406,0.17695983,113020.0,113010.0,0.94922552]
[1758524255617,0.17695983,113020.0,113010.0,0.94918552]
[1758524256326,0.17695983,113020.0,113010.0,0.77221004]
[1758524256544,0.17695983,113020.0,113010.0,0.94918552]
[1758524256755,0.17695983,113020.0,113010.0,0.37188037]
[1758524256756,0.22902983,113020.0,113010.0,0.37188037]
[1758524256961,0.25217983,113020.0,113010.0,0.37188037]
[1758524257214,0.54001983,113020.0,113010.0,0.36978037]
[1758524257405,0.54001983,113020.0,113010.0,0.37078037]
[1758524257649,0.25217983,113020.0,113010.0,0.37288037]
[1758524257851,0.51682983,113020.0,113010.0,0.39700037]
[1758524258058,0.51682983,113020.0,113010.0,0.40010037]
[1758524261034,0.51682983,113020.0,113010.0,0.001]
[1758524261247,0.53997983,113020.0,113010.0,0.37078037]
[1758524262292,0.53993983,113020.0,113010.0,0.37078037]
[1758524262721,0.51678983,113020.0,113010.0,0.39700037]
[1758524262925,0.22902983,113020.0,113010.0,0.40010037]
[1758524263138,0.51678983,113020.0,113010.0,0.40010037]
[1758524263566,0.22902983,113020.0,113010.0,0.57707585]
[1758524263769,0.51678983,113020.0,113010.0,0.57707585]
[1758524264519,0.22902983,113020.0,113010.0,0.57707585]
[1758524264734,0.33772,113020.0,113010.0,0.57707585]
[1758524265159,0.33772,113020.0,113010.0,1.23457622]
[1758524265583,0.05,113020.0,113010.0,1.23457622]
[1758524265782,0.51467983,113020.0,113010.0,1.23457622]
[1758524266585,0.51467983,113020.0,113010.0,0.98746931]
[1758524267200,0.51467983,113020.0,113010.0,0.69974931]
[1758524267441,0.51467983,113020.0,113010.0,0.98746931]
[1758524267619,0.22695983,113020.0,113010.0,0.49501548]
[1758524267857,0.22695983,113020.0,113010.0,0.98746931]
[1758524268295,0.22695983,113020.0,113010.0,0.69974931]
[1758524268512,0.05,113020.0,113010.0,0.98746931]
[1758524268931,0.22695983,113020.0,113010.0,0.98746931]
[1758524269566,0.05,113020.0,113010.0,0.98746931]
[1758524269782,0.05014041,113030.0,113020.0,0.17695983]
[1758524269996,0.22708458,113030.0,113020.0,0.78090333]
[1758524270209,0.05014041,113030.0,113020.0,1.07168333]
[1758524271072,0.05314041,113030.0,113020.0,1.07168333]
[1758524271285,0.23215458,113030.0,113020.0,0.11458967]
[1758524271544,0.23215458,113030.0,113020.0,0.6070435]
[1758524272007,0.23215458,113030.0,113020.0,0.6039435]
[1758524273112,0.23215458,113030.0,113020.0,0.11148967]
[1758524273796,0.22695983,113020.0,113010.0,0.96020865]
[1758524274066,0.51463983,113020.0,113010.0,1.07169832]
[1758524274317,0.33768,113020.0,113010.0,1.07169832]
[1758524274582,0.05,113020.0,113010.0,1.07169832]
[1758524275266,0.05,113020.0,113010.0,1.07269832]
[1758524280240,0.05,113020.0,113010.0,1.07265832]
[1758524280911,0.22695983,113020.0,113010.0,1.07261898]
[1758524281558,0.05,113020.0,113010.0,1.07261898]
[1758524284014,0.00014041,113030.0,113020.0,0.17695983]
[1758524284238,0.00014041,113030.0,113020.0,0.75468333]
[1758524284467,0.00014041,113030.0,113020.0,0.78126333]
[1758524284683,0.00014041,113030.0,113020.0,0.78327333]
[1758524284904,0.00014041,113030.0,113020.0,1.07087333]
[1758524285340,0.17708458,113030.0,113020.0,1.07587333]
[1758524285774,0.00014041,113030.0,113020.0,1.07587333]
[1758524285988,0.00014041,113030.0,113020.0,0.78827333]
[1758524286436,0.00014041,113030.0,113020.0,1.07783333]
[1758524287595,0.00014041,113030.0,113020.0,1.41783333]
[1758524287847,0.00014041,113030.0,113020.0,0.9253795]
[1758524288062,0.00014041,113030.0,113020.0,1.41783333]
[1758524288287,0.00014041,113030.0,113020.0,1.44798523]
[1758524289514,0.00014041,113030.0,113020.0,1.44598523]
[1758524289721,0.00014041,113030.0,113020.0,1.44998523]
[1758524290144,0.00014041,113030.0,113020.0,1.91228716]
[1758524290401,0.00014041,113030.0,113020.0,1.13227333]
[1758524290607,0.00014041,113030.0,113020.0,1.41483333]
[1758524291018,0.00014041,113030.0,113020.0,1.42383333]
[1758524291579,0.00014041,113030.0,113020.0,1.42379333]
[1758524291796,0.00014041,113030.0,113020.0,1.13627333]
[1758524292008,0.00014041,113030.0,113020.0,1.42379333]
[1758524292617,0.00014041,113030.0,113020.0,1.45039012]
[1758524292844,0.00014041,113030.0,113020.0,1.42379333]
[1758524293244,0.00014041,113030.0,113020.0,1.16287012]
[1758524293447,0.00014041,113030.0,113020.0,1.42379333]
[1758524293640,0.00014041,113030.0,113020.0,1.13627333]
[1758524293879,0.00014041,113030.0,113020.0,1.42379333]
[1758524294838,0.00014041,113030.0,113020.0,1.13627333]
[1758524295045,0.00014041,113030.0,113020.0,1.42379333]
[1758524295457,0.00014041,113030.0,113020.0,1.91624716]
[1758524295675,0.00014041,113030.0,113020.0,1.42379333]
[1758524299381,0.00014041,113030.0,113020.0,0.6438195]
[1758524299584,0.00014041,113030.0,113020.0,1.13627333]
[1758524299792,0.00014041,113030.0,113020.0,1.42591333]
[1758524300706,0.00014041,113030.0,113020.0,1.13627333]
[1758524301023,0.00014041,113030.0,113020.0,1.42575333]
[1758524303513,0.00014041,113030.0,113020.0,0.6203795]
[1758524303514,0.00225041,113030.0,113020.0,0.6203795]
[1758524303735,0.00225041,113030.0,113020.0,1.42335333]
[1758524304466,0.00225041,113030.0,113020.0,1.13407333]
[1758524304666,0.00225041,113030.0,113020.0,1.42331333]
[1758524305032,0.00014041,113030.0,113020.0,1.42627333]
[1758524307791,0.00014041,113030.0,113020.0,1.42647333]
[1758524308202,0.00014041,113030.0,113020.0,1.13703333]
[1758524308411,0.00014041,113030.0,113020.0,0.9339395]
[1758524308605,0.00014041,113030.0,113020.0,1.42639333]
[1758524312303,0.00014041,113030.0,113020.0,1.13703333]
[1758524312533,0.00014041,113030.0,113020.0,1.42587333]
[1758524313243,0.00014041,113030.0,113020.0,1.91832716]
[1758524313458,0.00014041,113030.0,113020.0,1.45247074]
[1758524314290,0.00014041,113030.0,113020.0,1.45359074]
[1758524315976,0.00014041,113030.0,113020.0,1.16363074]
[1758524316179,0.00014041,113030.0,113020.0,1.45331074]
[1758524316984,0.00014041,113030.0,113020.0,1.45323074]
[1758524318262,0.00014041,113030.0,113020.0,1.11323074]
[1758524318473,0.00014041,113030.0,113020.0,1.45323074]
[1758524320308,0.00014041,113030.0,113020.0,1.48338264]
[1758524323262,0.05,113070.0,113060.0,0.17689722]
[1758524323483,0.05293,113080.0,113070.0,0.17688157]
[1758524323695,0.07904081,113080.0,113070.0,0.75460507]
[1758524324288,0.10563237,113080.0,113070.0,0.8217789]
[1758524324703,0.10763237,113080.0,113070.0,0.8217789]
[1758524326568,0.10863237,113080.0,113070.0,0.8217789]
[1758524327135,0.2854983,113080.0,113070.0,0.1524435]
[1758524327335,0.2854983,113080.0,113070.0,0.32932507]
[1758524327755,0.2854983,113080.0,113070.0,0.1524435]
[1758524329491,0.2854983,113080.0,113070.0,0.06717383]
[1758524329736,0.22688663,113070.0,113060.0,0.17689708]
[1758524329918,0.25578663,113070.0,113060.0,0.08526967]
[1758524330106,0.54642663,113070.0,113060.0,0.08526967]
[1758524330283,0.54642663,113070.0,113060.0,0.63120475]
[1758524330690,0.57302066,113070.0,113060.0,0.63120475]
[1758524331278,0.57602066,113070.0,113060.0,0.63120475]
[1758524331980,0.57602066,113070.0,113060.0,0.63220475]
[1758524332494,0.57602066,113070.0,113060.0,0.26316689]
[1758524332687,0.57602066,113070.0,113060.0,0.63220475]
[1758524332823,0.57602066,113070.0,113060.0,0.45530753]
[1758524333494,0.28538066,113070.0,113060.0,0.63220475]
[1758524333662,0.57590066,113070.0,113060.0,0.63220475]
[1758524334267,0.57590066,113070.0,113060.0,0.69851455]
[1758524334603,0.10849403,113070.0,113060.0,0.69851455]
[1758524334800,0.39885403,113070.0,113060.0,0.69851455]
[1758524335007,0.10849403,113070.0,113060.0,0.69851455]
[1758524335213,0.39869403,113070.0,113060.0,0.69851455]
[1758524335421,0.10849403,113070.0,113060.0,0.69851455]
[1758524335631,0.39572403,113070.0,113060.0,0.69851455]
[1758524335834,0.39572403,113070.0,113060.0,1.06956241]
[1758524336288,0.37179403,113070.0,113060.0,1.09376241]
[1758524336773,0.37171403,113070.0,113060.0,1.09376241]
[1758524337337,0.37171403,113070.0,113060.0,1.1039326]
[1758524337845,0.37143403,113070.0,113060.0,1.1039326]
[1758524338259,0.37139403,113070.0,113060.0,1.1059826]
[1758524338483,0.36935403,113070.0,113060.0,1.1059826]
[1758524339308,0.36935403,113070.0,113060.0,0.36790688]
[1758524339517,0.36935403,113070.0,113060.0,1.1059826]
[1758524340483,0.29256,113070.0,113060.0,1.1059826]
[1758524340689,0.003,113070.0,113060.0,1.3955426]
[1758524342876,0.003,113070.0,113060.0,1.02650474]
[1758524343077,0.003,113070.0,113060.0,1.3955426]
[1758524343289,0.003,113070.0,113060.0,1.1059826]
[1758524343472,0.003,113070.0,113060.0,1.3951426]
[1758524343740,0.003,113070.0,113060.0,1.1059826]
[1758524343957,0.003,113070.0,113060.0,0.36790688]
[1758524344169,0.003,113070.0,113060.0,1.3951426]
[1758524344593,0.003,113070.0,113060.0,1.1059826]
[1758524345429,0.00295,113070.0,113060.0,0.15257947]
[1758524345640,0.20532157,113070.0,113060.0,0.15257947]
[1758524346073,0.20532157,113070.0,113060.0,0.52161733]
[1758524346904,0.20532157,113070.0,113060.0,0.43634766]
[1758524347991,0.02549,113070.0,113060.0,0.98436274]
[1758524348206,0.47377733,113080.0,113060.0,0.98731274]
[1758524348426,0.20029733,113080.0,113070.0,0.38617279]
[1758524348627,0.49631733,113080.0,113070.0,0.36903786]
[1758524349061,0.17892733,113080.0,113070.0,0.36903786]
[1758524349272,0.49627733,113080.0,113070.0,0.36903786]
[1758524349487,0.50022733,113080.0,113070.0,0.36903786]
[1758524349874,0.17992593,113080.0,113070.0,0.54799943]
[1758524350105,0.00506,113080.0,113070.0,0.54799943]
[1758524350321,0.18292593,113080.0,113070.0,0.54799943]
[1758524350536,0.29978,113080.0,113070.0,0.57129943]
[1758524350992,0.47664593,113080.0,113070.0,0.57129943]
[1758524351202,0.47664593,113080.0,113070.0,0.54799943]
[1758524351619,0.17688157,113070.0,113060.0,0.24320702]
[1758524351829,0.20427157,113070.0,113060.0,0.0663098]
[1758524352039,0.20635157,113070.0,113060.0,0.43534766]
[1758524352248,0.20635157,113070.0,113060.0,0.17689722]
[1758524352484,0.20635157,113070.0,113060.0,0.24277536]
[1758524352706,0.20635157,113070.0,113060.0,0.61281322]
[1758524353121,0.20735157,113070.0,113060.0,0.61281322]
[1758524354123,0.20735157,113070.0,113060.0,0.001]
[1758524354124,0.57638943,113070.0,113060.0,0.001]
[1758524354527,0.60298743,113070.0,113060.0,0.001]
[1758524354747,1.31202529,113070.0,113060.0,0.001]
[1758524355105,1.0282571,113070.0,113060.0,0.001]
[1758524355945,0.65921924,113070.0,113060.0,0.001]
[1758524356164,1.3253371,113070.0,113060.0,0.001]
[1758524358917,0.95629924,113070.0,113060.0,0.001]
[1758524359135,1.3253371,113070.0,113060.0,0.001]
[1758524360534,1.0282571,113070.0,113060.0,0.001]
[1758524360683,1.3249771,113070.0,113060.0,0.001]
[1758524361095,1.80943653,113070.0,113060.0,0.001]
[1758524361295,1.42744686,113070.0,113060.0,0.001]
[1758524361471,1.72388686,113070.0,113060.0,0.001]
[1758524361899,1.72288686,113070.0,113060.0,0.001]
[1758524362110,1.72788686,113070.0,113060.0,0.001]
[1758524362330,0.17692852,113040.0,113030.0,0.64210651]
[1758524362543,0.47324852,113040.0,113030.0,0.64718651]
[1758524363107,0.17692852,113040.0,113030.0,0.64718651]
[1758524363316,0.47512852,113040.0,113030.0,0.27814865]
[1758524363526,0.84416638,113040.0,113030.0,0.00228081]
[1758524363956,0.86846638,113040.0,113030.0,0.00014081]
[1758524364792,0.86846638,113040.0,113030.0,0.06532567]
[1758524365003,0.86846638,113040.0,113030.0,0.00014081]
[1758524365143,0.86846638,113040.0,113030.0,0.00214081]
[1758524365562,0.49942852,113040.0,113030.0,0.00314081]
[1758524365770,0.47512852,113040.0,113030.0,0.00314081]
[1758524365974,0.87155638,113040.0,113030.0,0.00314081]
[1758524366385,0.87127638,113040.0,113030.0,0.00314081]
[1758524366591,0.8813246,113040.0,113030.0,0.00314081]
[1758524366761,0.00208,113040.0,113030.0,0.20902498]
[1758524366995,0.47264852,113040.0,113030.0,0.03208081]
[1758524367632,0.47264852,113040.0,113030.0,0.03008081]
[1758524367935,0.47477852,113040.0,113030.0,0.03108081]
[1758524368647,0.17692852,113040.0,113030.0,0.20802498]
[1758524368852,0.47256852,113040.0,113030.0,0.20802498]
[1758524369058,0.47256852,113040.0,113030.0,0.40011867]
[1758524369475,0.47256852,113040.0,113030.0,0.46618037]
[1758524369709,0.47469852,113040.0,113030.0,0.09714251]
[1758524369882,0.47469852,113040.0,113030.0,0.46618037]
[1758524370161,0.47469852,113040.0,113030.0,0.09714251]
[1758524370381,0.47792852,113040.0,113030.0,0.06720251]
[1758524370601,0.87095638,113040.0,113030.0,0.06720251]
[1758524370812,0.50191852,113040.0,113030.0,0.06720251]
[1758524371665,0.87095638,113040.0,113030.0,0.06720251]
[1758524371927,0.21630565,113040.0,113030.0,0.06720251]
[1758524372121,0.47256852,113040.0,113030.0,0.46442037]
[1758524372336,0.47256852,113040.0,113030.0,0.09538251]
[1758524372554,0.17692852,113040.0,113030.0,0.09538251]
[1758524372733,0.47248852,113040.0,113030.0,0.09538251]
[1758524372928,0.47461852,113040.0,113030.0,0.06937251]
[1758524373137,0.49860852,113040.0,113030.0,0.06720251]
[1758524373342,0.50183852,113040.0,113030.0,0.06720251]
[1758524373549,0.88101306,113040.0,113030.0,0.00114081]
[1758524373972,1.2766572,113040.0,113030.0,0.00114081]
[1758524374186,0.90761934,113040.0,113030.0,0.00114081]
[1758524374414,0.61205934,113040.0,113030.0,0.00114081]
[1758524374808,0.54010148,113040.0,113030.0,0.00114081]
[1758524375034,0.90913934,113040.0,113030.0,0.00114081]
[1758524375957,0.61205934,113040.0,113030.0,0.00114081]
[1758524376158,0.90889934,113040.0,113030.0,0.00114081]
[1758524376374,0.53986148,113040.0,113030.0,0.00114081]
[1758524376592,0.90889934,113040.0,113030.0,0.00114081]
[1758524378258,0.90885934,113040.0,113030.0,0.00114081]
[1758524378895,1.36316687,113040.0,113030.0,0.00114081]
[1758524379539,1.70316687,113040.0,113030.0,0.00114081]
[1758524380978,1.70516687,113040.0,113030.0,0.00014081]
[1758524381112,1.71016687,113040.0,113030.0,0.00014081]
[1758524381325,1.70816687,113040.0,113030.0,0.00014081]
[1758524381761,1.79543654,113040.0,113030.0,0.00014081]
[1758524382180,1.79447654,113040.0,113030.0,0.00014081]
[1758524382616,1.41336687,113040.0,113030.0,0.00014081]
[1758524382857,1.70904687,113040.0,113030.0,0.00014081]
[1758524383057,1.34000901,113040.0,113030.0,0.00014081]
[1758524383448,1.70904687,113040.0,113030.0,0.00014081]
[1758524383801,0.67529115,113040.0,113030.0,0.00014081]
[1758524384006,1.70904687,113040.0,113030.0,0.00014081]
[1758524384261,1.41336687,113040.0,113030.0,0.00014081]
[1758524384459,1.70884687,113040.0,113030.0,0.00014081]
[1758524384642,1.04432901,113040.0,113030.0,0.00014081]
[1758524384848,1.70884687,113040.0,113030.0,0.00014081]
[1758524385236,1.70872687,113040.0,113030.0,0.00014081]
[1758524389167,0.97065115,113040.0,113030.0,0.00014081]
[1758524389581,1.70872687,113040.0,113030.0,0.00014081]
[1758524390617,1.46319855,113040.0,113030.0,0.00014081]
[1758524391612,1.43521855,113040.0,113030.0,0.00014081]
[1758524391851,1.14061855,113040.0,113030.0,0.00231081]
[1758524392056,1.16460855,113040.0,113030.0,0.00231081]
[1758524392296,1.45888855,113040.0,113030.0,0.00014081]
[1758524392699,0.94227115,113040.0,113030.0,0.00536081]
[1758524392877,0.64594115,113040.0,113030.0,0.02832081]
[1758524393109,0.94010115,113040.0,113030.0,0.02832081]
[1758524393730,0.94223115,113040.0,113030.0,0.02832081]
[1758524393903,0.94223115,113040.0,113030.0,0.02527081]
[1758524394117,0.94223115,113040.0,113030.0,0.00231081]
[1758524394329,1.46199855,113040.0,113030.0,0.00014081]
[1758524395299,1.45876855,113040.0,113030.0,0.00014081]
[1758524395957,0.94223115,113040.0,113030.0,0.00231081]
[1758524396167,0.94223115,113040.0,113030.0,0.02832081]
[1758524396992,0.74375115,113040.0,113030.0,0.02832081]
[1758524397230,1.03538115,113040.0,113030.0,0.02832081]
[1758524397865,1.03751115,113040.0,113030.0,0.02527081]
[1758524398095,1.06121115,113040.0,113030.0,0.00231081]
[1758524399044,0.74375115,113040.0,113030.0,0.00231081]
[1758524399244,1.03691115,113040.0,113030.0,0.02573081]
[1758524399701,0.74375115,113040.0,113030.0,0.02573081]
[1758524399932,1.06706305,113040.0,113030.0,0.02869081]
[1758524400359,1.09444896,113040.0,113030.0,0.02869081]
[1758524400565,1.61379636,113040.0,113030.0,0.00014081]
[1758524400765,2.21535478,113040.0,113030.0,0.00014081]
[1758524400875,2.26535478,113040.0,113030.0,0.00014081]
[1758524401075,1.94845343,113040.0,113030.0,0.00014081]
[1758524401289,1.74906603,113040.0,113030.0,0.00014081]
[1758524401497,0.91335863,113040.0,113030.0,0.00014081]
[1758524401734,1.32063636,113040.0,113030.0,0.00014081]
[1758524401929,1.60875636,113040.0,113030.0,0.00014081]
[1758524402129,1.60675636,113040.0,113030.0,0.00014081]
[1758524402344,2.10830376,113040.0,113030.0,0.00014081]
[1758524402548,2.09930376,113040.0,113030.0,0.00014081]
[1758524402745,2.18457343,113040.0,113030.0,0.00014081]
[1758524402963,2.22211529,113040.0,113030.0,0.00014081]
[1758524403165,2.22211529,113040.0,113000.0,0.03606834]
[1758524403166,0.54712738,113010.0,113000.0,0.03606834]
[1758524403402,1.5267637,113010.0,113000.0,0.03620875]
[1758524403603,1.01511705,113010.0,113000.0,0.06462875]
[1758524403820,1.38280188,113010.0,113000.0,0.03620875]
[1758524404017,1.82944986,113010.0,113000.0,0.03620875]
[1758524404189,1.87530935,113010.0,113000.0,0.03620875]
[1758524404404,1.88579634,113010.0,113000.0,0.03620875]
[1758524404677,1.58020935,113010.0,113000.0,0.04220875]
[1758524404916,1.03168005,113010.0,113000.0,0.07062875]
[1758524405118,0.56069548,113010.0,113000.0,0.63102946]
[1758524405321,0.85381548,113010.0,113000.0,0.63102946]
[1758524405527,1.43376255,113010.0,113000.0,0.04220875]
[1758524405902,1.91598412,113010.0,113000.0,0.04220875]
[1758524406333,1.8498766,113010.0,113000.0,0.04220875]
[1758524406466,1.85813033,113010.0,113000.0,0.04220875]
[1758524406651,1.90813033,113010.0,113000.0,0.04220875]
[1758524406851,2.42621959,113010.0,113000.0,1e-08]
[1758524407051,2.10747773,113010.0,113000.0,1e-08]
[1758524407311,2.51240926,113010.0,113000.0,1e-08]
[1758524407542,2.21828926,113010.0,113000.0,1e-08]
[1758524407746,2.51236926,113010.0,113000.0,1e-08]
[1758524407979,0.17700681,112990.0,112980.0,0.00676791]
[1758524408183,1.14459073,112990.0,112980.0,0.00676791]
[1758524408387,0.85578073,112990.0,112980.0,0.00676791]
[1758524408541,1.17340073,112990.0,112980.0,0.00676791]
[1758524408715,1.18356073,112990.0,112980.0,0.00676791]
[1758524408916,0.88968073,112990.0,112980.0,0.00676791]
[1758524409124,0.69101333,112990.0,112980.0,0.00676791]
[1758524409326,1.18352073,112990.0,112980.0,0.00676791]
[1758524409575,0.86075073,112990.0,112980.0,0.00880791]
[1758524409752,1.15664073,112990.0,112980.0,0.00880791]
[1758524409948,1.18344073,112990.0,112980.0,0.00676791]
[1758524410561,1.18544073,112990.0,112980.0,0.00776791]
[1758524410769,1.2747104,112990.0,112980.0,0.00776791]
[1758524411186,1.6948623,112990.0,112980.0,1e-08]
[1758524411396,1.73944836,112990.0,112980.0,1e-08]
[1758524412255,2.11505529,112990.0,112980.0,1e-08]
[1758524412471,0.20719005,112970.0,112960.0,0.0102]
[1758524412700,2.45027182,112970.0,112960.0,0.0102]
[1758524412967,2.48029182,112970.0,112960.0,0.0102]
[1758524413408,2.18593182,112970.0,112960.0,0.0102]
[1758524413614,2.48021182,112970.0,112960.0,0.0102]
[1758524414053,2.48221182,112970.0,112960.0,0.0202]
[1758524414277,2.48321182,112970.0,112960.0,0.0102]
[1758524414486,2.48321182,112970.0,112930.0,0.02684008]
[1758524414487,0.17708517,112940.0,112930.0,0.02684008]
[1758524414691,2.09297839,112940.0,112930.0,1e-08]
[1758524414890,1.22593414,112940.0,112930.0,1e-08]
[1758524415091,1.22291414,112940.0,112930.0,0.00201001]
[1758524415291,1.30434544,112940.0,112930.0,1e-08]
[1758524415540,1.59878544,112940.0,112930.0,1e-08]
[1758524415670,1.59883226,112940.0,112930.0,1e-08]
[1758524415870,0.90681497,112940.0,112930.0,1e-08]
[1758524416112,1.20113497,112940.0,112930.0,1e-08]
[1758524416290,1.76070083,112940.0,112930.0,1e-08]
[1758524416491,0.51711654,112920.0,112910.0,0.0002]
[1758524416702,2.26796101,112920.0,112910.0,0.0002]
[1758524416919,2.35537068,112920.0,112910.0,0.0002]
[1758524417128,2.46340258,112920.0,112910.0,1e-08]
[1758524417493,0.17714791,112900.0,112890.0,0.00028]
[1758524417696,0.85068498,112900.0,112890.0,0.00028]
[1758524417900,1.26337465,112900.0,112890.0,0.00028]
[1758524418131,1.26329465,112900.0,112890.0,0.00028]
[1758524418475,0.99612655,112900.0,112890.0,0.00028]
[1758524418612,1.5178991,112900.0,112890.0,0.00028]
[1758524418798,1.54450427,112900.0,112890.0,0.00028]
[1758524419002,1.24730427,112900.0,112890.0,0.00028]